[Event "28th CRO-chT 1A-Men 2019"]
[Site "Mali Losinj"]
[Date "2019.10.06"]
[Round "9.23"]
[White "Jovanic, Ognjen"]
[Black "Sindik, Ervin"]
[Result "1-0"]
[ECO "A48"]
[WhiteElo "2532"]
[BlackElo "2283"]
[Annotator "ChessBase"]
[PlyCount "83"]
[EventDate "2019.09.28"]
[EventType "team-tourn"]
[EventCountry "CRO"]
[SourceTitle "playchess.com"]
[Source "ChessBase"]
[SourceQuality "1"]
[TimeControl "40/5400+30:1800+30"]

1. d4 {[%emt 0:01:30]} Nf6 {[%emt 0:00:30]} 2. Nf3 {[%emt 0:00:00]} c5 {[%emt 0:00:30]} 3. e3 {[%emt 0:03:00]} g6 {[%emt 0:00:30]} 4. dxc5 {[%emt 0:04:30]} Qa5+ {[%emt 0:01:30]} 5. Bd2 {[%emt 0:02:30]} Qxc5 {[%emt 0:00:30]} 6. c4 {[%emt 0:00:30]} Ne4 {[%emt 0:02:30]} 7. Nc3 {[%emt 0:01:30]} Nxd2 {[%emt 0:00:30]} 8. Qxd2 {[%emt 0:00:30]} Bg7 {[%emt 0:00:30]} 9. Rc1 {[%emt 0:00:30]} b6 {[%emt 0:10:30]} 10. Be2 {[%emt 0:08:30]} Bb7 {[%emt 0:01:30]} 11. O-O {[%emt 0:00:00]} Na6 {[%emt 0:07:30]} 12. Rfd1 {[%emt 0:03:00]} Rd8 {[%emt 0:06:30]} 13. Nb5 {[%emt 0:04:30]} Nb4 {[%emt 0:11:30]} 14. a3 {[%emt 0:08:30]} Nc6 {[%emt 0:01:30]} 15. Nc7+ {[%emt 0:14:30]} Kf8 {[%emt 0:00:00]} 16. Nd5 {[%emt 0:00:30]} Qd6 {[%emt 0:05:00]} 17. Qc2 {[%emt 0:01:30]} Qb8 {[%emt 0:04:30]} 18. b4 {[%emt 0:00:30]} Ne5 {[%emt 0:03:30]} 19. Nxe5 {[%emt 0:08:30]} Bxe5 {[%emt 0:02:30]} 20. f4 {[%emt 0:01:30]} Bxd5 {[%emt 0:02:30]} 21. cxd5 {[%emt 0:04:30]} Bf6 {[%emt 0:01:30]} 22. Qc7 {[%emt 0:05:30]} Bb2 {[%emt 0:01:30]} 23. Qxb8 {[%emt 0:01:30]} Rxb8 {[%emt 0:00:30]} 24. Rc2 {[%emt 0:00:30]} Bf6 {[%emt 0:07:30]} 25. Rc7 {[%emt 0:00:30]} a5 {[%emt 0:01:30]} 26. Rxd7 {[%emt 0:03:30]} Kg7 {[%emt 0:00:30]} 27. d6 {[%emt 0:00:30]} exd6 {[%emt 0:01:30]} 28. Bc4 {[%emt 0:00:00]} Rhf8 {[%emt 0:00:30]} 29. R1xd6 {[%emt 0:01:00]} b5 {[%emt 0:04:30]} 30. Bd5 {[%emt 0:01:30]} axb4 {[%emt 0:00:30]} 31. axb4 {[%emt 0:00:00]} Bc3 {[%emt 0:00:00]} 32. Rc6 {[%emt 0:01:00]} Bd2 {[%emt 0:02:41]} 33. Kf2 {[%emt 0:02:41]} Rbe8 {[%emt 0:06:08]} 34. Rcc7 {[%emt 0:02:13]} Bxe3+ {[%emt 0:03:24]} 35. Kf3 {[%emt 0:00:05]} Bb6 {[%emt 0:00:40]} 36. Rxf7+ {[%emt 0:00:44]} Rxf7 {[%emt 0:00:28]} 37. Rxf7+ {[%emt 0:00:02]} Kh6 {[%emt 0:01:32]} 38. g4 {[%emt 0:01:19]} Re3+ {[%emt 0:03:44]} 39. Kg2 {[%emt 0:00:08]} Bd8 {[%emt 0:00:59]} 40. g5+ {[%emt 0:00:00]} Bxg5 {[%emt 0:00:00]} 41. fxg5+ {[%emt 0:01:18]} Kxg5 {[%emt 0:00:54]} 42. Rb7 {[%emt 0:00:30]} 1-0

[Event "28th CRO-chT 1A-Men 2019"]
[Site "Mali Losinj"]
[Date "2019.10.06"]
[Round "9.24"]
[White "Zivkovic, Nikola"]
[Black "Plenca, Jadranko"]
[Result "0-1"]
[ECO "C91"]
[WhiteElo "2139"]
[BlackElo "2461"]
[Annotator "ChessBase"]
[PlyCount "70"]
[EventDate "2019.09.28"]
[EventType "team-tourn"]
[EventCountry "CRO"]
[SourceTitle "playchess.com"]
[Source "ChessBase"]
[SourceQuality "1"]
[TimeControl "40/5400+30:1800+30"]

1. e4 {[%emt 0:00:30]} e5 {[%emt 0:03:30]} 2. Nf3 {[%emt 0:00:00]} Nc6 {[%emt 0:00:00]} 3. Bb5 {[%emt 0:00:00]} a6 {[%emt 0:00:00]} 4. Ba4 {[%emt 0:00:30]} Nf6 {[%emt 0:00:30]} 5. O-O {[%emt 0:00:00]} b5 {[%emt 0:00:30]} 6. Bb3 {[%emt 0:00:00]} Bb7 {[%emt 0:00:00]} 7. Re1 {[%emt 0:00:30]} Be7 {[%emt 0:00:00]} 8. c3 {[%emt 0:00:30]} O-O {[%emt 0:02:30]} 9. d4 {[%emt 0:00:30]} d6 {[%emt 0:00:30]} 10. Nbd2 {[%emt 0:01:30]} h6 {[%emt 0:00:00]} 11. Nf1 {[%emt 0:00:30]} Re8 {[%emt 0:00:00]} 12. Ng3 {[%emt 0:00:30]} Bf8 {[%emt 0:00:30]} 13. a4 {[%emt 0:01:30]} exd4 {[%emt 0:10:30]} 14. cxd4 {[%emt 0:00:30]} Na5 {[%emt 0:01:30]} 15. Bc2 {[%emt 0:00:30]} c5 {[%emt 0:00:30]} 16. d5 {[%emt 0:02:30]} g6 {[%emt 0:02:30]} 17. Nd2 {[%emt 0:03:30]} Bg7 {[%emt 0:01:30]} 18. f4 {[%emt 0:04:30]} c4 {[%emt 0:01:30]} 19. h3 {[%emt 0:05:30]} b4 {[%emt 0:00:30]} 20. Nf3 {[%emt 0:01:30]} b3 {[%emt 0:05:30]} 21. Bb1 {[%emt 0:03:30]} c3 {[%emt 0:01:30]} 22. bxc3 {[%emt 0:20:30]} b2 {[%emt 0:02:30]} 23. Bxb2 {[%emt 0:00:30]} Qb6+ {[%emt 0:00:30]} 24. Kh2 {[%emt 0:00:30]} Qxb2 {[%emt 0:01:30]} 25. Bd3 {[%emt 0:01:30]} Qxc3 {[%emt 0:01:30]} 26. Rc1 {[%emt 0:01:30]} Qa3 {[%emt 0:00:30]} 27. Rb1 {[%emt 0:01:30]} Rac8 {[%emt 0:01:30]} 28. Rb6 {[%emt 0:01:30]} Nd7 {[%emt 0:02:30]} 29. Rb1 {[%emt 0:01:30]} Rc3 {[%emt 0:00:30]} 30. Bf1 {[%emt 0:01:30]} Nc5 {[%emt 0:04:30]} 31. Qd2 {[%emt 0:05:30]} Nab3 {[%emt 0:04:30]} 32. Qf2 {[%emt 0:02:30]} Qxa4 {[%emt 0:02:30]} 33. e5 {[%emt 0:02:30]} Qxf4 {[%emt 0:01:30]} 34. e6 {[%emt 0:02:30]} fxe6 {[%emt 0:01:30]} 35. Kh1 {[%emt 0:00:30]} Bd4 {[%emt 0:01:30]} 0-1

[Event "28th CRO-chT 1A-Men 2019"]
[Site "Mali Losinj"]
[Date "2019.10.06"]
[Round "9.30"]
[White "Brumen, Dinko"]
[Black "Feletar, Darko"]
[Result "1/2-1/2"]
[ECO "D14"]
[WhiteElo "2317"]
[BlackElo "2356"]
[Annotator "ChessBase"]
[PlyCount "20"]
[EventDate "2019.09.28"]
[EventType "team-tourn"]
[EventCountry "CRO"]
[SourceTitle "playchess.com"]
[Source "ChessBase"]
[SourceQuality "1"]
[TimeControl "40/5400+30:1800+30"]

1. d4 {[%emt 0:00:30]} d5 {[%emt 0:00:30]} 2. Nf3 {[%emt 0:00:30]} Nf6 {[%emt 0:00:00]} 3. c4 {[%emt 0:00:00]} c6 {[%emt 0:00:00]} 4. cxd5 {[%emt 0:00:00]} cxd5 {[%emt 0:00:30]} 5. Nc3 {[%emt 0:00:30]} Nc6 {[%emt 0:00:00]} 6. Bf4 {[%emt 0:00:00]} Bf5 {[%emt 0:00:00]} 7. e3 {[%emt 0:00:00]} e6 {[%emt 0:00:00]} 8. Bd3 {[%emt 0:00:00]} Bxd3 {[%emt 0:00:00]} 9. Qxd3 {[%emt 0:00:00]} Bd6 {[%emt 0:00:30]} 10. Bxd6 {[%emt 0:00:00]} Qxd6 {[%emt 0:00:00]} 1/2-1/2